[Event "44th Chess Olympiad Open 2022"]
[Site "Chennai"]
[Date "2022.08.03"]
[Round "6.32"]
[White "Ferreira, Jorge Viterbo"]
[Black "Cu Hor, Winston Darwin"]
[Result "1-0"]
[WhiteElo "2499"]
[BlackElo "2328"]
[Annotator "TA"]
[PlyCount "65"]
[EventDate "2022.??.??"]
[TimeControl "60"]

{[%evp 19,65,0,21,21,50,43,48,41,57,58,57,40,44,47,84,68,62,69,77,47,52,45,122,
73,78,75,82,83,235,266,203,249,343,319,418,407,599,543,850,823,849,810,1000,
851,2537,2847,29982,1790]} 1. c4 {[%emt 0:00:02]} c5 {[%emt 0:00:20]} 2. g3 {
[%emt 0:00:09]} g6 {[%emt 0:00:37]} 3. Bg2 {[%emt 0:00:10]} Bg7 {[%emt 0:00:06]
} 4. Nc3 {[%emt 0:00:11]} Nc6 {[%emt 0:00:07]} 5. a3 {[%emt 0:00:09]} a5 {
[%emt 0:01:06]} 6. d3 {[%emt 0:00:10]} d6 {[%emt 0:01:21]} 7. Rb1 {[%emt 0:00:
00]} e5 {[%emt 0:06:56]} 8. e3 {[%emt 0:04:16]} Nge7 {[%emt 0:05:06]} 9. Nge2 {
[%emt 0:00:21]} O-O {[%emt 0:00:10]} 10. O-O {[%emt 0:00:40]} Be6 {[%emt 0:00:
00]} 11. Nd5 {[%emt 0:01:44] A36: Symmetrical English vs ...g6:4 Bg2 Bg7.} f5 {
[%emt 0:11:30]} 12. Nec3 {[%emt 0:03:08]} Bf7 {[%emt 0:00:00] [#]} 13. Nxe7+
$146 {[%emt 0:11:49] White is slightly better.} ({Predecessor:} 13. Bd2 Nxd5
14. Nxd5 Ne7 15. Nxe7+ Qxe7 16. Qc2 Rfd8 17. b4 cxb4 18. axb4 a4 19. Ra1 {
0-1 (42) Lapa,A (1600)-Harazinska,E (2041) Olsztyn 2013}) 13... Qxe7 {[%emt 0:
00:00]} 14. Nd5 {[%emt 0:00:32]} Qd8 {[%emt 0:00:00]} 15. b4 {[%emt 0:02:16]}
cxb4 {[%emt 0:14:21]} 16. axb4 {[%emt 0:02:00]} a4 {[%emt 0:00:15][%cal Ye5e4]}
17. Ba3 {[%emt 0:07:35]} Ne7 {[%emt 0:04:39]} 18. Nc3 {[%emt 0:08:09] White is
more active.} d5 {[%emt 0:11:35]} 19. c5 {[%emt 0:02:06]} (19. b5 $5 {[%cal
Rc4d5]}) 19... d4 {[%emt 0:02:29]} 20. exd4 {[%emt 0:02:54]} exd4 {[%emt 0:00:
00]} (20... Qxd4 $14 21. Nxa4 Be8 22. Qb3+ Bf7) 21. Nb5 {[%emt 0:00:41]} (21.
Nxa4 $142 Nd5 22. Bxd5 Bxd5 23. Bc1) 21... Bd5 {[%emt 0:04:01]} 22. Nd6 {
[%emt 0:05:32]} Bxg2 {[%emt 0:07:21]} 23. Kxg2 {[%emt 0:00:13]} Nd5 $2 {
[%emt 0:07:36] Black cannot hold the game after this.} (23... f4 $16 {is a
better defense.}) 24. Qf3 $18 {[%emt 0:05:10]} (24. Nxb7 Qe7 25. Nd6 Nc3 $14)
24... Nc3 {[%emt 0:00:00]} 25. Nxb7 {[%emt 0:02:18]} ({Much less strong is} 25.
Qxb7 $6 Rb8 26. Qf3 Be5 $16) 25... Qc7 {[%emt 0:00:00] [#]} 26. b5 $1 {[%emt 0:
00:00][%cal Yb4b5,Yb5b6] And now b6 would win.} Rab8 {[%emt 0:05:16]} (26...
Nxb1 $2 27. Rxb1 Qf7 28. c6) (26... g5 27. Nd6) 27. Nd6 {[%emt 0:04:49]} f4 {
[%emt 0:00:55] [#]} (27... g5 $142 28. h3 (28. b6 g4 $16) 28... h5 29. Qxh5 (
29. b6 g4 $16) 29... Nxb5 30. Nxb5 Rxb5 31. Rxb5 Qc6+ 32. Qf3 Qxb5) 28. g4 $1 {
[%emt 0:01:39]} Rf6 {[%emt 0:04:31]} (28... Qe7 29. Rbe1) 29. b6 {[%emt 0:00:
00]} Qd8 {[%emt 0:00:09]} 30. Rbe1 {[%emt 0:03:10]} Rxd6 {[%emt 0:01:38]} 31.
cxd6 {[%emt 0:00:08][%cal Yc5d6,Yd6d7] Threatens to win with Re7.} Qxb6 {
[%emt 0:05:51]} 32. d7 {[%emt 0:02:29] Threatening mate with Re8+.} Qb5 {
[%emt 0:00:30] [#]} 33. Qxf4 {[%emt 0:01:41] Weighted Error Value: White=0.10 
(very precise) /Black=0.78} (33. Rb1 $142 $3 Rd8 (33... h6 34. Rxb5) 34. Rxb5
Nxb5 35. Qd5+ Kh8 36. Qxb5 h6 37. Re1 Kh7 38. Re8) 1-0

[Event "44th Chess Olympiad Open 2022"]
[Site "Chennai"]
[Date "2022.08.03"]
[Round "6.32"]
[White "Veiga, Jose Francisco R P "]
[Black "Lorenzana, Wilson Estuardo"]
[Result "1-0"]
[WhiteElo "2378"]
[BlackElo "2182"]
[Annotator "TA"]
[PlyCount "82"]
[EventDate "2022.??.??"]
[TimeControl "60"]

{[%evp 19,82,40,39,19,34,0,34,0,0,0,0,0,0,0,0,0,0,5,37,31,37,2,0,-71,0,-159,
-159,-154,-175,-159,-119,-137,-122,-124,-117,-144,-137,-193,-191,-184,-182,
-247,-234,-277,-266,-341,-339,-352,-266,-612,-414,-972,-929,-793,-851,-29976,
-29977,-29977,-29978,-29982,-29983,-29983,-29983,-29981,-29981]} 1. d4 {
[%emt 0:00:05]} Nf6 {[%emt 0:00:04]} 2. Nf3 {[%emt 0:00:19]} d6 {[%emt 0:01:09]
} 3. c4 {[%emt 0:01:22]} Nbd7 {[%emt 0:00:59]} 4. Nc3 {[%emt 0:00:14]} g6 {
[%emt 0:00:50]} 5. e4 {[%emt 0:01:04]} e5 {[%emt 0:01:04]} 6. d5 {[%emt 0:00:
00]} Nc5 {[%emt 0:00:50]} 7. Qc2 {[%emt 0:00:34]} a5 {[%emt 0:00:04]} 8. h3 {
[%emt 0:00:06]} Nh5 {[%emt 0:02:55]} 9. Be3 {[%emt 0:05:18]} Bg7 {[%emt 0:00:
00]} 10. O-O-O {[%emt 0:01:31]} O-O {[%emt 0:00:33]} 11. g4 {[%emt 0:00:16]
E90: King's Indian: Classical: Early deviations and 6 h3.} Nf4 {[%emt 0:00:54]}
12. Ne2 {[%emt 0:00:11] [#]} Qe7 $146 {[%emt 0:12:46]} ({Predecessor:} 12...
Qe8 13. Nxf4 exf4 14. Bxc5 dxc5 15. e5 Bxe5 16. Re1 f6 17. Bd3 Bd7 18. Nxe5
fxe5 {1-0 (26) Lewtak,D (2093)-Czarnota,D (2240) Warsaw 2011}) 13. Rg1 {
[%emt 0:06:53] White is slightly better.} Bd7 {[%emt 0:01:21]} 14. Nxf4 {
[%emt 0:03:45]} exf4 {[%emt 0:00:04]} 15. Bxc5 {[%emt 0:00:08]} dxc5 {[%emt 0:
00:00]} 16. e5 {[%emt 0:00:05]} Bxe5 {[%emt 0:07:17]} 17. Re1 $1 {[%emt 0:00:
00]} f6 {[%emt 0:00:04]} 18. Bd3 {[%emt 0:00:28]} Qg7 {[%emt 0:05:23]} 19. Nxe5
{[%emt 0:04:00]} fxe5 {[%emt 0:00:05]} 20. Qc3 {[%emt 0:00:06]} Rae8 {[%emt 0:
00:00]} 21. Re2 {[%emt 0:13:17] [#]} (21. f3 $11 {keeps the balance.}) 21...
Qh6 {[%emt 0:14:33]} (21... f3 $1 $17 {[%cal Rf3e2]} 22. Re4 Qh6+ 23. Kb1 Qxh3)
22. Bc2 $2 {[%emt 0:08:32]} (22. f3 $1 $11) 22... f3+ $17 {[%emt 0:06:08]} 23.
Re3 {[%emt 0:00:22]} Qxh3 {[%emt 0:05:23]} 24. Qxa5 {[%emt 0:02:41]} Qh2 {
[%emt 0:00:11]} 25. Qe1 {[%emt 0:05:18]} Qf4 $36 {[%emt 0:00:50] Black is on
the roll.} 26. Kb1 {[%emt 0:00:15]} e4 {[%emt 0:01:50]} (26... Bxg4 $2 27. Re4
$18) 27. g5 {[%emt 0:19:11]} Re5 {[%emt 0:03:01]} 28. Ka1 {[%emt 0:00:00]} (28.
a3 $17 {might work better.}) 28... Rfe8 $19 {[%emt 0:00:44]} (28... Rxg5 29.
Rxg5 Qxg5 30. Rxe4 $17) 29. a3 {[%emt 0:03:57]} b6 {[%emt 0:00:00]} ({Not} 
29... Rxg5 30. Rxg5 Qxg5 31. Ka2 $17) 30. Bb1 {[%emt 0:03:55]} (30. Qd1 $142)
30... Bg4 {[%emt 0:02:31]} ({Weaker is} 30... Rxg5 31. Rxg5 Qxg5 32. Rxe4 Rxe4
33. Qxe4 $17) 31. Qd1 {[%emt 0:01:40]} Qxg5 {[%emt 0:02:46]} ({But not} 31...
Rxg5 $2 32. Rge1 $19) 32. d6 {[%emt 0:01:16]} cxd6 {[%emt 0:00:00]} 33. Qxd6 {
[%emt 0:00:11]} Qh4 {[%emt 0:02:46]} 34. Rg3 $2 {[%emt 0:01:55]} (34. Bxe4 Rxe4
35. Qd5+ R4e6 36. Re4) 34... Bf5 {[%emt 0:03:34][%cal Yh4g3] [#] Hoping for ...
Qxg3!} 35. Rgxf3 {[%emt 0:03:20]} (35. Qd2 $142) 35... exf3 {[%emt 0:01:39]}
36. Rxe5 {[%emt 0:00:19]} Rxe5 {[%emt 0:00:03]} 37. Qb8+ {[%emt 0:00:24]} Kf7 {
[%emt 0:00:04] Black mates.} 38. Qxe5 {[%emt 0:00:56]} Qh1 {[%emt 0:00:23]
[%csl Gf5][%cal Rh1b1]} 39. Qc7+ {[%emt 0:00:32]} Kg8 {[%emt 0:00:00][%csl Gf5]
[%cal Rh1b1]} 40. Qb8+ {[%emt 0:00:00]} Kg7 {[%emt 0:00:00][%csl Gf5][%cal
Rh1b1]} 41. Qe5+ {[%emt 0:02:51]} Kh6 {[%emt 0:00:36] Weighted Error Value:
White=0.59/Black=0.16 (very precise) . Sensor Board Error (Ke4/e5)?} 1-0

[Event "44th Chess Olympiad Open 2022"]
[Site "Chennai"]
[Date "2022.08.03"]
[Round "6.32"]
[White "Juarez Flores, Carlos A."]
[Black "Sousa, Andre Ventura"]
[Result "0-1"]
[WhiteElo "2335"]
[BlackElo "2420"]
[Annotator "TA"]
[PlyCount "81"]
[EventDate "2022.??.??"]
[TimeControl "60"]

{[%evp 12,81,0,-7,0,-21,-3,-8,18,24,33,13,16,25,52,55,75,73,66,28,68,50,51,44,
67,14,9,-48,-40,-46,-38,-56,-20,-30,-9,-28,-5,-13,-17,-53,8,0,26,-11,-16,-4,0,
-34,-27,-20,-9,-35,-30,-23,-29,-48,-31,-37,-33,-49,-37,-44,-15,-34,-20,-99,636,
262,633,625,957,954]} 1. Nf3 {[%emt 0:00:02]} c5 {[%emt 0:00:34]} 2. g3 {
[%emt 0:01:33]} g6 {[%emt 0:00:36]} 3. Bg2 {[%emt 0:01:29]} Bg7 {[%emt 0:00:23]
} 4. d4 {[%emt 0:01:11]} cxd4 {[%emt 0:01:13]} 5. Nxd4 {[%emt 0:00:22]} Nc6 {
[%emt 0:00:33]} 6. Nb3 {[%emt 0:07:34]} Nf6 {[%emt 0:07:27]} 7. c4 {[%emt 0:00:
00]} a5 {[%emt 0:04:00] [#] A31: Symmetrical English: 2 Nf3 Nf6 3 d4.} 8. Nd4
$146 {[%emt 0:04:11]} ({Predecessor:} 8. Na3 a4 9. Nd4 O-O 10. Ndb5 d6 11. O-O
Be6 12. Nc3 Nd7 13. Be3 Qa5 14. Bd2 Qh5 15. Rb1 {0-1 (30) David,A (2549)-Saric,
I (2689) Rio Achaea 2018}) 8... O-O {[%emt 0:01:53]} 9. O-O {[%emt 0:01:19]}
Ne5 {[%emt 0:16:05] The position is equal.} 10. Na3 {[%emt 0:05:46]} d6 {
[%emt 0:07:23]} 11. h3 {[%emt 0:12:45]} Qb6 {[%emt 0:04:30]} 12. b3 {[%emt 0:
00:00]} Nfd7 {[%emt 0:07:45]} 13. Be3 {[%emt 0:03:20][%cal Yd4c6] Threatens to
win with Nc6!} Nc5 {[%emt 0:00:08]} 14. Nab5 {[%emt 0:01:48]} Bd7 {[%emt 0:00:
00]} 15. Rc1 {[%emt 0:05:26]} Bc6 {[%emt 0:06:20]} 16. f3 {[%emt 0:04:27]} Ned7
{[%emt 0:03:02]} 17. Qd2 {[%emt 0:02:24]} d5 {[%emt 0:02:30]} 18. Na3 {[%emt 0:
00:00]} ({Much weaker is} 18. Nxc6 bxc6 19. Nd4 e5 $15) (18. Nc3 $1 $14 Bxd4
19. Bxd4 (19. Qxd4 e5 $17)) 18... Qb4 $11 {[%emt 0:05:34]} 19. Ndc2 {[%emt 0:
00:00]} (19. Qxb4 $11 axb4 20. Nac2) 19... Qxd2 $15 {[%emt 0:01:16]} 20. Bxd2 {
[%emt 0:00:01]} d4 {[%emt 0:03:30]} 21. f4 {[%emt 0:00:08]} Bxg2 {[%emt 0:00:
00]} 22. Kxg2 {[%emt 0:00:02]} Ne4 {[%emt 0:00:01]} 23. Rcd1 {[%emt 0:00:42]}
Ndc5 {[%emt 0:04:53]} 24. Nb5 {[%emt 0:01:19]} Rfd8 {[%emt 0:04:22]} 25. Bc1 {
[%emt 0:00:58][%cal Rc2d4]} Ne6 {[%emt 0:04:19]} ({Better is} 25... d3 $15 26.
exd3 Nxd3) 26. Ba3 {[%emt 0:00:25]} Kf8 {[%emt 0:00:40]} 27. f5 {[%emt 0:00:33]
} gxf5 {[%emt 0:00:14]} 28. Rxf5 {[%emt 0:00:01]} a4 {[%emt 0:01:52]} 29. Rd5 {
[%emt 0:01:00]} axb3 {[%emt 0:01:12]} 30. axb3 {[%emt 0:00:32]} Nc3 {[%emt 0:
00:00]} 31. Nxc3 {[%emt 0:00:18]} dxc3 {[%emt 0:00:08]} 32. e3 {[%emt 0:00:35]}
Ke8 {[%emt 0:01:58]} 33. h4 {[%emt 0:00:19]} b6 {[%emt 0:00:34]} 34. Kf3 {
[%emt 0:00:20]} Rdc8 {[%emt 0:01:21]} 35. Rb5 {[%emt 0:00:29]} Ra6 {[%emt 0:00:
00]} 36. g4 {[%emt 0:00:45][%cal Yg3g4,Yg4g5,Yg5f6]} Nc5 {[%emt 0:00:00]} 37.
Rd5 {[%emt 0:00:17]} Nd7 {[%emt 0:02:07] White must now prevent ... Rca8.} 38.
Rg5 {[%emt 0:00:29]} (38. Rd1 $11) 38... Bf6 $2 {[%emt 0:00:33] [#]} (38... Bf8
$17 39. Ke2 h6) 39. Rg8+ $18 {[%emt 0:00:15]} Nf8 {[%emt 0:00:02]} 40. g5 {
[%emt 0:00:07]} Rd8 {[%emt 0:00:58]} 41. gxf6 {[%emt 0:00:00] Weighted Error
Value: White=0.21 (precise) /Black=0.36. Loss on time!?} 0-1

[Event "44th Chess Olympiad Open 2022"]
[Site "Chennai"]
[Date "2022.08.03"]
[Round "6.32"]
[White "Giron Chavez David Emanuel"]
[Black "Santos, Jose Guilherme B Li"]
[Result "0-1"]
[WhiteElo "2115"]
[BlackElo "2361"]
[Annotator "TA"]
[PlyCount "66"]
[EventDate "2022.??.??"]
[TimeControl "60"]

{[%evp 20,66,63,54,70,47,65,41,66,39,40,34,40,19,25,26,40,8,11,-2,47,22,69,14,
6,0,17,10,51,8,46,34,78,0,0,0,110,105,125,102,134,0,0,0,0,0,0,-7,686]} 1. e4 {
[%emt 0:00:03]} c5 {[%emt 0:00:20]} 2. Nf3 {[%emt 0:00:33]} e6 {[%emt 0:00:24]}
3. d4 {[%emt 0:00:54]} cxd4 {[%emt 0:00:08]} 4. Nxd4 {[%emt 0:00:06]} a6 {
[%emt 0:00:17]} 5. c4 {[%emt 0:01:51]} Nf6 {[%emt 0:02:14]} 6. Nc3 {[%emt 0:00:
00]} Qc7 {[%emt 0:02:39]} 7. a3 {[%emt 0:01:59]} b6 {[%emt 0:00:42]} 8. Be3 {
[%emt 0:00:52]} Bb7 {[%emt 0:00:06]} 9. f3 {[%emt 0:00:57]} d6 {[%emt 0:00:14]}
10. Be2 {[%emt 0:01:05]} Be7 {[%emt 0:00:20]} 11. O-O {[%emt 0:00:38]} O-O {
[%emt 0:00:32] B41: Sicilian: Kan Variation: 5 c4.} 12. Qd2 {[%emt 0:03:22]}
Nbd7 {[%emt 0:00:52]} 13. Rfc1 {[%emt 0:04:13]} Rfc8 {[%emt 0:07:50] White is
slightly better.} 14. a4 {[%emt 0:02:29][%cal Ya4a5]} Rab8 {[%emt 0:03:43]} 15.
Kh1 {[%emt 0:03:37]} Qd8 {[%emt 0:00:29]} 16. Nd1 {[%emt 0:17:55]} Qf8 {
[%emt 0:08:04] [#]} 17. b3 $146 {[%emt 0:04:53]} ({Predecessor:} 17. Qe1 Ne5
18. Nf2 d5 19. cxd5 exd5 20. Bf4 Bd6 21. Nf5 dxe4 22. Nxe4 Nxe4 23. fxe4 Rxc1
24. Rxc1 {0-1 (68) Mullon,J (2405)-Rychagov,A (2558) Paleochora 2016}) 17...
Ne5 {[%emt 0:03:14]} 18. a5 {[%emt 0:10:46]} bxa5 {[%emt 0:02:44]} 19. Qxa5 {
[%emt 0:00:29]} Ng6 {[%emt 0:00:06]} (19... d5 $11) 20. Qd2 {[%emt 0:07:33]} h5
{[%emt 0:07:07]} (20... d5 $1 $11) 21. Rcb1 {[%emt 0:13:42]} ({Better is} 21.
Nf2 $14) 21... d5 $11 {[%emt 0:10:29]} 22. exd5 {[%emt 0:00:10]} exd5 {[%emt 0:
00:00]} (22... Bb4 $5 {[%cal Rb4d2]} 23. Qb2 exd5 $14) 23. Nf5 {[%emt 0:00:29]}
Bb4 {[%emt 0:07:35]} 24. Qb2 {[%emt 0:00:41]} dxc4 {[%emt 0:06:32]} 25. Bxc4 {
[%emt 0:00:11]} Bd5 {[%emt 0:00:05]} 26. Bxd5 {[%emt 0:07:23]} (26. Ba7 $1 $16
{[%cal Ra7b8]}) 26... Nxd5 {[%emt 0:00:06]} 27. Bd4 {[%emt 0:00:09] Against Nc3
} Qe8 {[%emt 0:03:13]} (27... Ngf4 $11) 28. Nxg7 $16 {[%emt 0:03:22]} Qe1+ {
[%emt 0:01:33]} 29. Bg1 {[%emt 0:00:02]} Nc3 {[%emt 0:04:14] [#]} 30. Nf5 {
[%emt 0:03:17]} Qe5 $36 {[%emt 0:02:00] White is under pressure. The position
is equal.} 31. Bd4 {[%emt 0:01:59]} Qe1+ {[%emt 0:00:56]} 32. Bg1 {[%emt 0:00:
03][%cal Yd1e3] aiming for Nde3!} Qe5 {[%emt 0:00:23]} 33. Nh6+ {[%emt 0:03:48]
} Kg7 $2 {[%emt 0:00:36] Weighted Error Value: White=0.23 (precise) /Black=0.
23 (precise) . Sensor Board Error (Ke4/e5)?} (33... Kh7 $11 34. Nxf7 Qf4 35.
Rxa6 (35. Nxc3 Bxc3 36. Qc1 Bxa1 $17) 35... Qxf7) 0-1

[Event "44th Chess Olympiad Open 2022"]
[Site "Chennai"]
[Date "2022.08.03"]
[Round "6.33"]
[White "Tapia Ostolaza, Alexei"]
[Black "Sklyarov, Dmitry V."]
[Result "0-1"]
[WhiteElo "2201"]
[BlackElo "2474"]
[Annotator "TA"]
[PlyCount "104"]
[EventDate "2022.??.??"]
[TimeControl "60"]

{[%evp 10,104,23,8,0,-8,-26,-8,3,-45,-41,-50,-56,-49,-34,-80,-43,-50,-43,-54,
-50,-56,-27,-34,-37,-32,-9,-10,-25,-35,-25,-28,-20,-41,-8,-26,0,0,0,0,0,-89,0,
0,0,0,0,0,131,120,107,0,0,-124,-135,-141,-129,-271,-280,-279,-266,-471,-366,
-845,-315,-672,-514,-512,-505,-487,-500,-521,-253,-242,-241,-241,-208,-208,
-208,-208,-175,-174,-147,-145,0,0,0,-184,-184,-229,-221,-5089,-5089,-912,-462,
-729,-666]} 1. Nf3 {[%emt 0:00:06]} g6 {[%emt 0:00:08]} 2. g3 {[%emt 0:00:31]}
Bg7 {[%emt 0:00:04]} 3. d4 {[%emt 0:00:23]} c5 {[%emt 0:00:48]} 4. d5 {[%emt 0:
00:00]} d6 {[%emt 0:00:39]} 5. Bg2 {[%emt 0:01:59]} Nf6 {[%emt 0:01:27]} 6. Nc3
{[%emt 0:01:10]} b5 {[%emt 0:07:18][%cal Yb7b5,Yb5b4] A43: Schmid Benoni.} 7.
a3 {[%emt 0:18:25]} Bb7 {[%emt 0:11:57] [#]} 8. Nh4 $146 {[%emt 0:00:00]} ({
Predecessor:} 8. O-O O-O 9. e4 Qb6 10. Re1 Nbd7 11. Bf1 a6 12. h3 e6 13. Bg2
exd5 14. Nxd5 Nxd5 15. exd5 {0-1 (42) Burmakin,V (2581)-Pinol Fulgoni, F (2274)
Sitges 2007}) 8... b4 {[%emt 0:04:53] The position is equal.} 9. Nb1 {[%emt 0:
06:13]} (9. axb4 $11 cxb4 10. Nb5) 9... Nbd7 $15 {[%emt 0:07:06]} 10. O-O {
[%emt 0:02:43]} O-O {[%emt 0:02:19]} 11. e4 {[%emt 0:03:19]} Qc7 {[%emt 0:00:
00]} 12. Nd2 {[%emt 0:06:32]} (12. Be3 $15) 12... a5 {[%emt 0:02:57]} 13. Re1 {
[%emt 0:06:22]} Nb6 {[%emt 0:06:38]} 14. Nhf3 {[%emt 0:10:48]} Nfd7 {[%emt 0:
03:55]} 15. Rb1 $1 {[%emt 0:04:19]} bxa3 {[%emt 0:00:41]} 16. c4 {[%emt 0:01:
49]} (16. bxa3 c4 $17) 16... axb2 {[%emt 0:05:59]} 17. Bxb2 {[%emt 0:00:10]}
Rfb8 {[%emt 0:00:40]} 18. Bxg7 {[%emt 0:01:17]} Kxg7 {[%emt 0:00:00]} 19. Qb3 {
[%emt 0:02:33]} Bc8 {[%emt 0:03:02][%cal Yb6d5]} 20. Qc3+ {[%emt 0:01:41]} f6 {
[%emt 0:00:01]} 21. Ra1 {[%emt 0:00:30] Prevents Na4.} Nf8 {[%emt 0:01:09]} 22.
h4 {[%emt 0:08:19]} (22. Rxa5 $2 Na4 23. Rxa8 Nxc3 $19) 22... Nbd7 {[%emt 0:02:
26]} 23. Nh2 {[%emt 0:01:22]} a4 {[%emt 0:01:35]} 24. f4 {[%emt 0:03:28]} Qa5 {
[%emt 0:01:18]} 25. Qe3 {[%emt 0:00:28]} (25. Qc1 $11) 25... a3 {[%emt 0:05:28]
} ({Black should try} 25... Rb2 $1 $17 26. Nhf3 a3) 26. e5 $11 {[%emt 0:01:52]}
fxe5 {[%emt 0:05:38]} 27. Ndf3 $1 {[%emt 0:00:26][%cal Rf4e5]} a2 {[%emt 0:04:
20]} 28. fxe5 {[%emt 0:00:45]} Nxe5 {[%emt 0:04:46]} (28... dxe5 $11 {keeps
the balance.} 29. Nxe5 (29. Ng4 Nf6 $11) 29... Qa3) 29. Nxe5 $16 {[%emt 0:00:
10]} Bf5 {[%emt 0:00:09]} 30. Nc6 {[%emt 0:01:09]} ({White should play} 30.
Neg4 $1 $16 Ra7 31. Nh6 (31. Qg5 $2 Qxe1+ 32. Rxe1 Rb1 $19)) 30... Qxe1+ $1 $11
{[%emt 0:00:05] Remove Defender} 31. Rxe1 {[%emt 0:00:08]} (31. Qxe1 $11 {
was the only way to keep the balance.} Rb1 32. Kf2 Rxe1 33. Kxe1) 31... Rb1 $1
$36 {[%emt 0:00:15] Threatens to win with ...Rxe1+. Black has strong
initiative. The board is on fire.} 32. Qxe7+ {[%emt 0:03:06]} Kg8 {[%emt 0:00:
10]} 33. Rxb1 {[%emt 0:01:29]} (33. Rf1 $17 {was forced.} a1=Q 34. Qxd6) 33...
axb1=Q+ $19 {[%emt 0:00:03]} 34. Nf1 {[%emt 0:00:12]} Qb2 $1 {[%emt 0:03:45]}
35. Ne3 $2 {[%emt 0:02:14]} (35. Nd8 {was worth a try.} Qd4+ 36. Kh1) 35... Bd7
{[%emt 0:04:09] Hoping for ...Ra1+.} 36. Qg5 $2 {[%emt 0:01:22]} (36. Nd8 Qg7
37. Qxg7+ Kxg7 38. Nb7) 36... Re8 $2 {[%emt 0:02:53]} (36... Ra1+ 37. Nf1 Ra2)
37. Ng4 $2 {[%emt 0:01:01]} (37. Nf1) 37... Bxg4 {[%emt 0:00:24]} 38. Qxg4 {
[%emt 0:00:04]} Qc1+ {[%emt 0:02:26]} 39. Kh2 {[%emt 0:00:21]} h5 {[%emt 0:00:
04]} 40. Qf3 {[%emt 0:00:58]} Qxc4 {[%emt 0:00:17]} (40... Nd7 $142 41. Qf1 Qc2
) 41. Qf6 {[%emt 0:30:51]} Qe2 {[%emt 0:32:47] Prevents Ne7+. And now ...c4
would win.} 42. Qxd6 {[%emt 0:00:00]} Qb2 {[%emt 0:00:00] Inhibits Qf6.} 43.
Qxc5 {[%emt 0:00:00]} Re2 {[%emt 0:00:00]} 44. Qg1 {[%emt 0:00:00]} Nd7 {
[%emt 0:00:00] aiming for ...Nf6.} 45. Kh3 {[%emt 0:00:00]} Nf6 {[%emt 0:00:00]
} 46. Qa7 {[%emt 0:00:00] [#] Prevents Qb7.} Qb1 {[%emt 0:00:00]} ({Of course
not} 46... Rxg2 $6 47. Ne7+ Kh8 48. Nxg6+ Kg8 49. Ne7+ Kh8 50. Ng6+ Kg8 51.
Ne7+ Kh8 52. Ng6+ $11) ({Better is} 46... Ne8 $1 $17 47. Ne7+ Kh7 48. Nf5+ Kh8)
47. Ne7+ $11 {[%emt 0:00:00]} Kf8 {[%emt 0:00:00]} 48. d6 {[%emt 0:00:00]} (48.
Qa6 $11 {and White is okay.} Rf2 49. Qc8+ Kg7 50. Qc7) 48... Re1 $19 {[%emt 0:
00:00][%cal Ye1h1] ( -> ...Rh1+!)} 49. Qf2 {[%emt 0:00:00] [#]} Kg7 {[%emt 0:
00:00] ...Rd1 is the strong threat.} ({Not} 49... Rh1+ 50. Bxh1 Qxh1+ 51. Qh2
$11) 50. Nd5 $2 {[%emt 0:00:00] [#]} (50. Qf3) 50... Rh1+ $1 {[%emt 0:00:00]
Black is clearly winning.} 51. Bxh1 {[%emt 0:00:00]} Qxh1+ {[%emt 0:00:00]} 52.
Qh2 {[%emt 0:00:00]} Qxd5 {[%emt 0:00:00] Weighted Error Value: White=0.62/
Black=0.30} 0-1